bitfinex/quotes_BTCUSD_20250213
["timestamp","ask_amount","ask_price","bid_price","bid_amount"]
[1739444237581,0.17823904,96290.0,96289.0,0.85984468]
[1739444238825,0.158779,96290.0,96289.0,0.85984468]
[1739444253212,0.26128265,96290.0,96289.0,0.85984468]
[1739444254180,0.25828265,96290.0,96289.0,0.85984468]
[1739444254665,0.26928265,96290.0,96289.0,0.85984468]
[1739444254894,0.26428265,96290.0,96289.0,0.85984468]
[1739444255093,0.25828265,96290.0,96289.0,0.85984468]
[1739444255305,0.28372016,96290.0,96289.0,0.31004468]
[1739444256352,0.28696874,96290.0,96289.0,0.31004468]
[1739444256497,0.28096874,96290.0,96289.0,0.31004468]
[1739444256705,0.28696874,96290.0,96289.0,0.31004468]
[1739444257112,0.29396874,96290.0,96289.0,0.31004468]
[1739444257666,0.44396874,96290.0,96289.0,0.31004468]
[1739444267485,0.605805,96274.0,96273.0,0.3098065]
[1739444267788,0.15,96273.0,96270.0,0.0001065]
[1739444268026,0.45150365,96274.0,96270.0,0.0001065]
[1739444268027,0.40935329,96272.0,96270.0,0.0001065]
[1739444268271,0.30581,96271.0,96270.0,1e-06]
[1739444268531,0.40831365,96271.0,96270.0,1e-06]
[1739444269004,0.44329974,96271.0,96270.0,1e-06]
[1739444269219,0.47772995,96271.0,96270.0,1e-06]
[1739444269609,0.55777853,96271.0,96270.0,1e-06]
[1739444269835,0.60021604,96271.0,96270.0,1e-06]
[1739444270063,0.65431604,96271.0,96270.0,1e-06]
[1739444270363,0.64731604,96271.0,96270.0,1e-06]
[1739444270588,0.65431604,96271.0,96270.0,1e-06]
[1739444271441,0.64731604,96271.0,96270.0,1e-06]
[1739444271665,0.65431604,96271.0,96270.0,1e-06]
[1739444271884,0.455863,96238.0,96237.0,0.5498]
[1739444272173,0.155865,96237.0,96236.0,0.63302194]
[1739444272367,0.25836865,96237.0,96236.0,0.5498]
[1739444272620,0.32778495,96237.0,96236.0,0.5498]
[1739444273396,0.32778495,96237.0,96236.0,0.5498439]
[1739444273671,0.34722246,96237.0,96236.0,0.5498439]
[1739444274198,0.50022246,96237.0,96236.0,0.5498439]
[1739444274412,0.50422246,96237.0,96236.0,0.5498439]
[1739444274874,0.50747104,96237.0,96236.0,0.5498439]
[1739444275298,0.50447104,96237.0,96236.0,0.5498439]
[1739444275551,0.50847104,96237.0,96236.0,0.5498439]
[1739444275754,0.50447104,96237.0,96236.0,0.5499505]
[1739444276211,0.50547104,96237.0,96236.0,0.309957]
[1739444276426,0.51147104,96237.0,96236.0,0.309957]
[1739444277386,0.52192278,96237.0,96236.0,0.309957]
[1739444278198,0.48693669,96237.0,96236.0,0.309957]
[1739444278403,0.52192278,96237.0,96236.0,0.309957]
[1739444278601,0.48749257,96237.0,96236.0,0.309957]
[1739444278819,0.52192278,96237.0,96236.0,0.309957]
[1739444279637,0.45250648,96237.0,96236.0,0.309957]
[1739444280486,0.43306897,96237.0,96236.0,0.309957]
[1739444281606,0.42982039,96237.0,96236.0,0.309957]
[1739444313189,0.72982039,96237.0,96236.0,0.309957]
[1739444315991,0.71936865,96237.0,96236.0,0.859757]
[1739444316221,0.56936865,96237.0,96236.0,0.859757]
[1739444316446,0.58878206,96237.0,96236.0,0.859757]
[1739444317072,0.59203221,96237.0,96236.0,0.859757]
[1739444332526,0.5726188,96237.0,96236.0,0.859757]
[1739444338172,0.59202373,96237.0,96236.0,0.859757]
[1739444351626,0.33365508,96237.0,96236.0,1.094323]
[1739444351853,0.33365508,96237.0,96236.0,0.938457]
[1739444353801,0.48952008,96237.0,96236.0,0.938457]
[1739444354915,0.33365508,96237.0,96236.0,0.938457]
[1739444359484,0.31425015,96237.0,96236.0,0.938457]
[1739444367101,0.31425015,96237.0,96236.0,1.094323]
[1739444367747,0.01425015,96237.0,96236.0,1.094323]
[1739444368470,0.01425015,96237.0,96236.0,1.12676047]
[1739444369079,0.00825015,96237.0,96236.0,1.12676047]
[1739444369285,0.00325015,96237.0,96236.0,1.12676047]
[1739444369495,0.002,96237.0,96236.0,1.094323]
[1739444369695,0.003,96237.0,96236.0,1.094323]
[1739444369928,0.001,96237.0,96236.0,1.094323]
[1739444370096,0.3,96245.0,96236.0,0.938457]
[1739444370296,0.3,96245.0,96243.0,0.155855]
[1739444370495,0.207792,96250.0,96239.0,0.00103897]
[1739444370703,0.3,96242.0,96241.0,0.155858]
[1739444373033,0.303,96242.0,96241.0,0.155858]
[1739444373478,0.306,96242.0,96241.0,0.155858]
[1739444373913,0.303,96242.0,96241.0,0.155858]
[1739444374159,0.303,96242.0,96241.0,1.0154645]
[1739444374435,0.305,96242.0,96241.0,1.0154645]
[1739444376602,0.005,96242.0,96241.0,1.0154645]
[1739444377788,0.005,96242.0,96241.0,0.8596065]
[1739444379064,0.160857,96242.0,96241.0,0.8596065]
[1739444381527,0.16410643,96242.0,96241.0,0.8596065]
[1739444389425,0.16410643,96242.0,96241.0,0.859713]
[1739444392316,0.005,96242.0,96241.0,0.859713]
[1739444394124,0.160857,96242.0,96241.0,0.859713]
[1739444400617,0.005,96242.0,96241.0,0.859713]
[1739444400994,0.005,96242.0,96241.0,1.015571]
[1739444401198,0.00522366,96242.0,96241.0,0.859713]
[1739444401809,0.00522366,96242.0,96241.0,1.015571]
[1739444403256,0.20773,96279.0,96241.0,1.015571]
[1739444403257,0.3,96258.0,96256.0,0.155834]
[1739444403443,0.3,96258.0,96256.0,0.238134]
[1739444403644,0.3,96266.0,96259.0,0.207771]
[1739444403869,0.3,96266.0,96265.0,0.155819]
[1739444404273,0.3,96266.0,96261.0,0.155825]
[1739444404527,0.3,96266.0,96262.0,0.155824]
[1739444404707,0.3,96266.0,96261.0,0.155825]
[1739444404908,0.3,96266.0,96258.0,0.207774]
[1739444405266,0.3,96266.0,96261.0,0.155825]
[1739444405484,0.3,96266.0,96261.0,0.155826]
[1739444405714,0.304,96266.0,96261.0,0.155826]
[1739444405964,0.155831,96258.0,96257.0,0.5498]
[1739444406714,0.26894196,96258.0,96257.0,0.5498]
[1739444407193,0.25833465,96258.0,96257.0,0.5498]
[1739444407621,0.26158396,96258.0,96257.0,0.5498]
[1739444409755,0.26158396,96258.0,96257.0,0.85438284]
[1739444410357,0.26458396,96258.0,96257.0,0.85438284]
[1739444410765,0.26858396,96258.0,96257.0,0.85438284]
[1739444414111,0.26880762,96258.0,96257.0,0.85438284]
[1739444416121,0.26555831,96258.0,96257.0,0.85438284]
[1739444419210,0.41555831,96258.0,96257.0,0.85438284]
[1739444419415,0.49325831,96258.0,96257.0,0.85438284]
[1739444421141,0.496508,96258.0,96257.0,0.85438284]
[1739444421693,0.496508,96258.0,96257.0,0.30458284]
[1739444422532,0.545508,96258.0,96257.0,0.30458284]
[1739444424015,0.568508,96258.0,96257.0,0.22147084]
[1739444424236,0.568508,96258.0,96257.0,0.20069284]
[1739444424932,0.564508,96258.0,96257.0,0.20069284]
[1739444425165,0.561508,96258.0,96257.0,0.20069284]
[1739444425372,0.59489814,96258.0,96257.0,0.20069284]
[1739444425788,0.59489814,96258.0,96257.0,0.11758084]
[1739444426005,0.59489814,96258.0,96257.0,0.02537902]
[1739444426216,0.59489814,96258.0,96257.0,2e-08]
[1739444426647,0.58089814,96258.0,96257.0,2e-08]
[1739444426856,0.68859168,96258.0,96257.0,2e-08]
[1739444427295,0.61681824,96258.0,96257.0,2e-08]
[1739444427517,0.62381824,96258.0,96257.0,2e-08]
[1739444428071,0.63081824,96258.0,96257.0,2e-08]
[1739444429070,0.66180992,96258.0,96257.0,2e-08]
[1739444430785,0.62588982,96258.0,96257.0,2e-08]
[1739444437639,0.45,96245.0,96244.0,0.3217]
[1739444437794,0.70835565,96245.0,96244.0,0.3217439]
[1739444439194,0.76898716,96245.0,96244.0,0.3217439]
[1739444439573,0.92128716,96245.0,96244.0,0.3217439]
[1739444440106,0.91803747,96245.0,96244.0,0.3217439]
[1739444440907,0.92128793,96245.0,96244.0,0.3217439]
[1739444441312,0.91428793,96245.0,96244.0,0.3217439]
[1739444441739,0.89029625,96245.0,96244.0,0.3217439]
[1739444441960,0.89729625,96245.0,96244.0,0.3217439]
[1739444442686,0.89729625,96245.0,96244.0,0.3009629]
[1739444442972,0.89729625,96245.0,96244.0,0.2386199]
[1739444443352,0.89729625,96245.0,96200.0,0.08]
[1739444443353,0.731087,96223.0,96204.0,0.5498]
[1739444443558,0.731087,96223.0,96200.0,0.08]
[1739444443559,0.85659065,96223.0,96222.0,0.00035552]
[1739444443964,0.89251075,96223.0,96222.0,5.2e-07]
[1739444444578,0.98247575,96223.0,96222.0,5.2e-07]
[1739444445016,0.98947575,96223.0,96222.0,5.2e-07]
[1739444445201,0.305891,96221.0,96220.0,2e-08]
[1739444445397,0.46775013,96221.0,96220.0,7.6e-07]
[1739444445602,0.50367023,96221.0,96220.0,7.6e-07]
[1739444445784,0.55402929,96221.0,96220.0,7.6e-07]
[1739444445982,0.55727975,96221.0,96220.0,7.6e-07]
[1739444446182,0.6597834,96221.0,96220.0,7.6e-07]
[1739444446408,0.6667834,96221.0,96220.0,7.6e-07]
[1739444447030,0.63581448,96221.0,96220.0,7.6e-07]
[1739444447207,0.605918,96204.0,96200.0,0.08]
[1739444447407,0.78069723,96204.0,96203.0,0.00015052]
[1739444448000,0.74434175,96204.0,96203.0,0.00015052]
[1739444448218,0.70842165,96204.0,96203.0,0.00015052]
[1739444448443,0.75134175,96204.0,96203.0,0.00015052]
[1739444448665,0.77173535,96204.0,96203.0,0.00015052]
[1739444448864,0.76573535,96204.0,96203.0,0.00015052]
[1739444449224,0.80865545,96204.0,96203.0,0.00015052]
[1739444449839,0.82242031,96204.0,96203.0,0.00015052]
[1739444450074,0.98412894,96204.0,96203.0,0.00015052]
[1739444450277,1.02748442,96204.0,96203.0,5.2e-07]
[1739444450883,0.95520884,96204.0,96203.0,5.2e-07]
[1739444451086,0.84950021,96204.0,96203.0,5.2e-07]
[1739444451424,0.328923,96201.0,96200.0,0.07996052]
[1739444451556,0.43142665,96201.0,96200.0,0.07996052]
[1739444452010,0.40842665,96201.0,96200.0,0.07996052]
[1739444452219,0.70842665,96201.0,96200.0,0.07996052]
[1739444453265,0.72781679,96201.0,96200.0,0.07996052]
[1739444454645,0.74506725,96201.0,96200.0,0.07996052]
[1739444457313,0.74506725,96201.0,96200.0,0.29775552]
[1739444458883,0.44506725,96201.0,96200.0,0.29775552]
[1739444459096,0.74506725,96201.0,96200.0,0.29775552]
[1739444461851,0.74506725,96201.0,96200.0,0.29786212]
[1739444465500,0.72567711,96201.0,96200.0,0.29786212]
[1739444468982,0.71867711,96201.0,96200.0,0.29786212]
[1739444469196,0.71767711,96201.0,96200.0,0.29786212]
[1739444469552,0.72467711,96201.0,96200.0,0.29786212]
[1739444471908,0.57467711,96201.0,96200.0,0.38006212]
[1739444473067,0.57490077,96201.0,96200.0,0.38006212]
[1739444475063,0.57490077,96201.0,96200.0,0.92986212]
[1739444478180,0.41897777,96201.0,96200.0,0.92986212]
[1739444480312,0.41897777,96201.0,96200.0,1.08578712]
[1739444480969,0.31647412,96201.0,96200.0,1.08578712]
[1739444481135,0.31322366,96201.0,96200.0,0.92986212]
[1739444483013,0.46914666,96201.0,96200.0,0.92986212]
[1739444483571,0.01322366,96201.0,96200.0,1.13568712]
[1739444484731,0.00722366,96201.0,96200.0,1.13568712]
[1739444484929,0.01322366,96201.0,96200.0,1.13568712]
[1739444485169,0.00022366,96201.0,96200.0,1.13568712]
[1739444485600,0.00822366,96201.0,96200.0,1.13568712]
[1739444486048,0.00122366,96201.0,96200.0,1.13568712]
[1739444486607,0.00322366,96201.0,96200.0,1.13568712]
[1739444501220,0.00322366,96201.0,96200.0,1.16808131]
[1739444502893,0.00122366,96201.0,96200.0,1.16808131]
[1739444504072,0.00022366,96201.0,96200.0,1.16808131]
[1739444504290,0.00022366,96201.0,96200.0,1.17108131]
[1739444522668,0.3,96211.0,96201.0,0.21757134]
[1739444522871,0.3,96211.0,96210.0,0.155908]
[1739444523068,0.3,96211.0,96210.0,0.03239419]
[1739444523291,0.3,96211.0,96209.0,0.15591]
[1739444523480,0.3,96211.0,96210.0,0.155908]
[1739444523993,0.304,96211.0,96210.0,0.155908]
[1739444525224,0.302,96211.0,96210.0,0.155908]
[1739444525633,0.30725036,96211.0,96210.0,0.155908]
[1739444526701,0.30725036,96211.0,96210.0,0.18838372]
[1739444527107,0.30725036,96211.0,96210.0,0.155908]
[1739444528639,0.30725036,96211.0,96210.0,0.92327934]
[1739444529065,0.30725036,96211.0,96210.0,0.95575726]
[1739444529870,0.30725036,96211.0,96210.0,0.92327934]
[1739444532044,0.30725036,96211.0,96210.0,0.95576056]
[1739444532273,0.30747402,96211.0,96210.0,0.95576056]
[1739444534069,0.30747402,96211.0,96210.0,1.03076056]
[1739444534486,0.00747402,96211.0,96210.0,1.03076056]
[1739444535311,0.00022387,96223.0,96222.0,0.155889]
[1739444535514,0.00022387,96223.0,96222.0,2.06324599]
[1739444535722,0.00022387,96223.0,96222.0,2.07232982]
[1739444537319,0.00022387,96223.0,96222.0,2.11992982]
[1739444537522,0.00022387,96223.0,96222.0,2.22243347]
[1739444537735,0.00022387,96223.0,96222.0,2.24543347]
[1739444538155,0.00422387,96223.0,96222.0,2.24543347]
[1739444538561,0.00022387,96223.0,96222.0,2.26646886]
[1739444538882,0.00022387,96223.0,96222.0,3.29496886]
[1739444539421,0.00022387,96223.0,96222.0,3.29396886]
[1739444539627,0.00022387,96223.0,96222.0,3.29496886]
[1739444539848,0.00122387,96223.0,96222.0,3.30096886]
[1739444540059,8.7e-07,96223.0,96222.0,3.30096886]
[1739444540880,8.7e-07,96223.0,96222.0,3.29996886]
[1739444541128,0.300994,96257.0,96222.0,3.29996886]
[1739444541129,0.000994,96257.0,96250.0,0.283644]
[1739444541328,0.000994,96257.0,96256.0,0.155834]
[1739444541530,0.00043919,96257.0,96256.0,0.155834]
[1739444542583,0.00043919,96257.0,96256.0,0.15687271]
[1739444542984,0.00143919,96257.0,96256.0,0.15687271]
[1739444544178,0.00143919,96257.0,96256.0,0.92002039]
[1739444544440,0.00243919,96257.0,96256.0,0.91898168]
[1739444544681,0.00243919,96257.0,96256.0,2.00608168]
[1739444544921,0.00143919,96257.0,96256.0,2.00608168]
[1739444545190,0.00043919,96257.0,96256.0,2.00608168]
[1739444545435,0.00154569,96257.0,96256.0,2.20058533]
[1739444545621,0.00154569,96257.0,96256.0,2.23284856]
[1739444545855,0.00054569,96257.0,96256.0,2.23284856]
[1739444546038,0.00154569,96257.0,96256.0,2.23984856]
[1739444546256,0.00254569,96257.0,96256.0,2.24384856]
[1739444546880,0.00254569,96257.0,96256.0,2.21158533]
[1739444549595,0.00022387,96270.0,96269.0,0.231313]
[1739444549807,0.00035557,96270.0,96269.0,2.40221457]
[1739444550014,0.00035557,96270.0,96269.0,2.41243314]
[1739444550737,0.00035557,96270.0,96269.0,2.41543314]
[1739444552946,0.00035557,96270.0,96269.0,1.38122418]
[1739444555000,0.02666667,96282.0,96281.0,0.155793]
[1739444555238,0.02666667,96282.0,96281.0,2.22522933]
[1739444555435,0.02666667,96282.0,96281.0,2.22419092]
[1739444555643,0.02666667,96282.0,96281.0,2.30189092]
[1739444556513,0.02666667,96282.0,96281.0,2.40439457]
[1739444556660,0.02666667,96282.0,96281.0,2.55439457]
[1739444556866,0.02666667,96282.0,96281.0,2.55539457]
[1739444557707,0.02666667,96282.0,96281.0,1.52418561]
[1739444557877,0.02666667,96282.0,96281.0,1.52818561]
[1739444558484,0.02666667,96282.0,96281.0,2.93548561]
[1739444564415,0.00022366,96295.0,96294.0,0.155772]
[1739444564613,0.00022366,96295.0,96294.0,0.88912809]
[1739444572489,0.00022366,96295.0,96294.0,0.92142707]
[1739444573008,0.00022366,96295.0,96294.0,0.88912809]
[1739444573470,0.00022366,96295.0,96294.0,0.9214468]
[1739444584889,0.00022366,96295.0,96294.0,0.9234468]
[1739444585242,0.00022366,96295.0,96294.0,0.9254468]
[1739444587347,0.00022387,96308.0,96297.0,0.33865311]
[1739444587520,0.00022387,96308.0,96297.0,0.37097182]
[1739444588738,0.00022387,96308.0,96297.0,0.37197182]
[1739444589589,0.00022387,96308.0,96297.0,0.37297182]
[1739444590981,0.00022387,96308.0,96297.0,1.78027182]
[1739444593168,0.00022387,96308.0,96301.0,0.18221392]
[1739444593381,0.00022387,96308.0,96307.0,0.155751]
[1739444593598,0.00035569,96308.0,96307.0,1.22225867]
[1739444595711,0.00235569,96308.0,96307.0,1.24342156]
[1739444597077,0.00235569,96308.0,96307.0,1.98601338]
[1739444601296,0.00235569,96308.0,96307.0,1.97543548]
[1739444601699,0.00235569,96308.0,96307.0,1.98585785]
[1739444605555,0.28000569,96308.0,96307.0,0.73201392]
[1739444605749,0.29035924,96308.0,96307.0,0.73201392]
[1739444605978,0.39286289,96308.0,96307.0,0.73201392]
[1739444607189,0.3941105,96308.0,96307.0,0.73201392]
[1739444607395,0.3991105,96308.0,96307.0,0.73201392]
[1739444607732,0.5491105,96308.0,96307.0,0.73201392]
[1739444608065,0.5511105,96308.0,96307.0,0.73201392]
[1739444608686,0.5491105,96308.0,96307.0,0.73201392]
[1739444608912,0.5511105,96308.0,96307.0,0.73301392]
[1739444609119,0.5461105,96308.0,96307.0,0.73301392]
[1739444609520,0.5531105,96308.0,96307.0,0.73301392]
[1739444611318,0.5531105,96308.0,96307.0,0.18321392]
[1739444611462,0.5761105,96308.0,96307.0,0.13321392]
[1739444611671,0.5761105,96308.0,96307.0,0.08321392]
[1739444612126,0.5691105,96308.0,96307.0,0.08321392]
[1739444612333,0.5671105,96308.0,96307.0,0.08221392]
[1739444612484,0.5741105,96308.0,96307.0,0.08221392]
[1739444612679,0.5761105,96308.0,96307.0,0.08321392]
[1739444615328,0.45,96301.0,96300.0,0.00022344]
[1739444615530,0.86236465,96301.0,96300.0,0.00022344]
[1739444615747,0.89828274,96301.0,96300.0,0.00022344]
[1739444615953,0.97999553,96301.0,96300.0,4.4e-07]
[1739444616166,0.699585,96286.0,96285.0,0.3217]
[1739444616370,0.305787,96285.0,96284.0,0.5498]
[1739444616577,0.48379065,96285.0,96284.0,0.5498]
[1739444618574,0.51234482,96285.0,96284.0,0.5498]
[1739444619416,0.51934482,96285.0,96284.0,0.5498]
[1739444619774,0.51609721,96285.0,96284.0,0.5498]
[1739444620882,0.30579,96283.0,96282.0,0.00022344]
[1739444621092,0.40829365,96283.0,96282.0,0.00022344]
[1739444622196,0.42760021,96283.0,96282.0,0.00022344]
[1739444622793,0.43360021,96283.0,96282.0,0.00022344]
[1739444622989,0.44060021,96283.0,96282.0,0.00022344]
[1739444626663,0.44060021,96283.0,96282.0,0.32192344]
[1739444627041,0.43360021,96283.0,96282.0,0.32192344]
[1739444627964,0.5402183,96283.0,96282.0,0.23883544]
[1739444628480,0.57707437,96283.0,96282.0,0.23905909]
[1739444628689,0.58407437,96283.0,96282.0,0.23905909]
[1739444629042,0.57107437,96283.0,96282.0,0.23905909]
[1739444629225,0.57807437,96283.0,96282.0,0.23905909]
[1739444629823,0.58507437,96283.0,96282.0,0.23905909]
[1739444630953,0.54915628,96283.0,96282.0,0.23905909]
[1739444632614,0.51830021,96283.0,96282.0,0.23905909]
[1739444633240,0.52154931,96283.0,96282.0,0.23905909]
[1739444633821,0.52154931,96283.0,96282.0,0.15597109]
[1739444634023,0.52154931,96283.0,96282.0,0.09365509]
[1739444634625,0.5574674,96283.0,96282.0,0.09365509]
[1739444635311,0.5574674,96283.0,96282.0,0.01056709]
[1739444635517,0.5574674,96283.0,96282.0,9e-08]
[1739444640324,0.557574,96283.0,96282.0,9e-08]
[1739444642432,0.52165591,96283.0,96282.0,9e-08]
[1739444645232,0.605818,96266.0,96265.0,0.3217]
[1739444645435,0.70832165,96266.0,96265.0,0.3217]
[1739444646530,0.72762821,96266.0,96265.0,0.3217]
[1739444647245,0.57762821,96266.0,96265.0,0.401]
[1739444647447,0.57962821,96266.0,96265.0,0.401]
[1739444647622,0.58262821,96266.0,96265.0,0.401]
[1739444648024,0.56332165,96266.0,96265.0,0.401]
[1739444648501,0.41075275,96266.0,96265.0,0.401]
[1739444648710,0.3082491,96266.0,96265.0,0.605719]
[1739444648897,0.0082491,96266.0,96265.0,0.605719]
[1739444649430,0.0082491,96266.0,96265.0,0.63814637]
[1739444649680,0.0082491,96266.0,96265.0,1.155519]
[1739444649857,0.0082491,96266.0,96265.0,1.1879461]
[1739444650349,0.0062491,96266.0,96265.0,1.1879461]
[1739444650556,0.0032491,96266.0,96265.0,1.1879461]
[1739444650969,0.0032491,96266.0,96265.0,1.1889461]
[1739444651822,0.3,96278.0,96277.0,0.1292]
[1739444652005,0.0001066,96283.0,96277.0,0.13672]
[1739444652237,0.10261025,96283.0,96282.0,0.155792]
[1739444652436,0.0001066,96283.0,96282.0,0.287292]
[1739444652636,0.3001066,96283.0,96282.0,0.287292]
[1739444653289,0.3001066,96283.0,96282.0,1.158792]
[1739444653504,0.30335471,96283.0,96282.0,1.158792]
[1739444653718,0.30335471,96283.0,96282.0,1.003]
[1739444654190,0.30635471,96283.0,96282.0,1.003]
[1739444654384,0.45914471,96283.0,96282.0,1.003]
[1739444654832,0.30935471,96283.0,96282.0,1.003]
[1739444655881,0.46514471,96283.0,96282.0,1.003]
[1739444658128,0.5870228,96283.0,96282.0,0.9199]
[1739444659333,0.5870228,96283.0,96282.0,0.8715]
[1739444659573,0.59222024,96283.0,96282.0,0.8715]
[1739444664898,0.59222024,96283.0,96282.0,0.87172386]
[1739444665356,0.59222024,96283.0,96282.0,0.32192386]
[1739444665710,0.5870228,96283.0,96282.0,0.32192386]
[1739444667579,0.5810228,96283.0,96282.0,0.32192386]
[1739444667784,0.5840228,96283.0,96282.0,0.32192386]
[1739444667939,0.5870228,96283.0,96282.0,0.32192386]
[1739444668142,0.4282328,96283.0,96282.0,0.32192386]
[1739444668338,0.5830228,96283.0,96282.0,0.32192386]
[1739444669587,0.5810228,96283.0,96282.0,0.32192386]
[1739444669797,0.5830228,96283.0,96282.0,0.32192386]
[1739444670275,0.5810228,96283.0,96282.0,0.32192386]
[1739444670656,0.5840228,96283.0,96282.0,0.32192386]
[1739444670858,0.5830228,96283.0,96282.0,0.32192386]
[1739444671054,0.5820228,96283.0,96282.0,0.32192386]
[1739444671260,0.5820228,96283.0,96282.0,0.87172386]
[1739444671461,0.5830228,96283.0,96282.0,0.87172386]
[1739444674444,0.59315912,96283.0,96282.0,0.87172386]
[1739444675962,0.59215912,96283.0,96282.0,0.87172386]
[1739444676177,0.59715912,96283.0,96282.0,0.87172386]
[1739444676579,0.60135693,96283.0,96282.0,0.87172386]
[1739444676806,0.75735693,96283.0,96282.0,0.87172386]
[1739444677006,0.83375693,96283.0,96282.0,0.87172386]
[1739444677206,0.83375693,96283.0,96282.0,0.32192386]
[1739444677852,0.82775693,96283.0,96282.0,0.32192386]
[1739444678078,0.82775693,96283.0,96282.0,0.2985296]
[1739444678231,0.83475693,96283.0,96282.0,0.2985296]
[1739444678428,0.86584432,96283.0,96282.0,0.2985296]
[1739444679178,0.86084432,96283.0,96282.0,0.2985296]
[1739444679584,0.86784432,96283.0,96282.0,0.2985296]
[1739444679759,0.85384432,96283.0,96282.0,0.2985296]
[1739444680068,0.86784432,96283.0,96282.0,0.2985296]
[1739444680479,0.86084432,96283.0,96282.0,0.2985296]
[1739444680655,0.86090363,96283.0,96282.0,0.2985296]
[1739444680856,0.85570582,96283.0,96282.0,0.2985296]
[1739444681154,0.83161843,96283.0,96282.0,0.2985296]
[1739444681440,0.82461843,96283.0,96282.0,0.2985296]
[1739444681635,0.83161843,96283.0,96282.0,0.2985296]
[1739444682984,0.83161843,96283.0,96282.0,0.00022386]
[1739444683861,0.86267801,96283.0,96282.0,0.00022386]
[1739444693728,0.78627801,96283.0,96282.0,0.00022386]
[1739444694637,0.3,96267.0,96266.0,0.29830574]
[1739444694789,0.55831965,96267.0,96266.0,0.29830574]
[1739444695697,0.59337923,96267.0,96266.0,0.29830574]
[1739444695886,0.61275367,96267.0,96266.0,0.29830574]
[1739444696530,0.61275367,96267.0,96266.0,0.34660574]
[1739444697049,0.62100271,96267.0,96266.0,0.34660574]
[1739444699393,0.62100271,96267.0,96266.0,0.3468296]
[1739444700371,0.77100271,96267.0,96266.0,0.2985296]
[1739444701744,0.76200271,96267.0,96266.0,0.2985296]
[1739444702198,0.76900271,96267.0,96266.0,0.2985296]
[1739444702942,0.73794313,96267.0,96266.0,0.2985296]
[1739444703380,0.74494313,96267.0,96266.0,0.2985296]
[1739444706059,0.74494313,96267.0,96266.0,0.26603251]
[1739444710403,0.72556869,96267.0,96266.0,0.26603251]
[1739444713021,0.72231965,96267.0,96266.0,0.26603251]
[1739444724432,0.72242625,96267.0,96266.0,0.26603251]
[1739444725775,0.72242625,96267.0,96266.0,0.34353251]
[1739444730467,0.72231557,96267.0,96266.0,0.34353251]
[1739444730644,0.72231557,96267.0,96266.0,0.26603251]
[1739444731878,0.72556472,96267.0,96266.0,0.26603251]
[1739444732867,0.72231557,96267.0,96266.0,0.26603251]
[1739444736643,0.72556509,96267.0,96266.0,0.26603251]
[1739444737257,0.76148318,96267.0,96266.0,0.26603251]
[1739444738454,0.78092875,96267.0,96266.0,0.26603251]
[1739444738955,0.74501066,96267.0,96266.0,0.26603251]
[1739444740411,0.76563243,96267.0,96266.0,0.26603251]
[1739444741832,0.74618686,96267.0,96266.0,0.26603251]
[1739444745421,0.455852,96245.0,96244.0,0.51628002]
[1739444745625,0.55835565,96245.0,96244.0,0.51628002]
[1739444746200,0.56160517,96245.0,96244.0,0.51628002]
[1739444746594,0.56164907,96245.0,96244.0,0.51628002]
[1739444746871,0.56264907,96245.0,96244.0,0.51628002]
[1739444747685,0.56364907,96245.0,96244.0,0.51628002]
[1739444747880,0.57388861,96245.0,96244.0,0.51628002]
[1739444749302,0.57388861,96245.0,96244.0,0.51650388]
[1739444750535,0.57063909,96245.0,96244.0,0.51650388]
[1739444751534,0.57063909,96245.0,96244.0,0.32192386]
[1739444759018,0.56863909,96245.0,96244.0,0.32192386]
[1739444759436,0.57563909,96245.0,96244.0,0.32192386]
[1739444759613,0.57263909,96245.0,96244.0,0.32192386]
[1739444760165,0.57463909,96245.0,96244.0,0.32192386]
[1739444760551,0.56439955,96245.0,96244.0,0.32192386]
[1739444760754,0.56039955,96245.0,96244.0,0.32192386]
[1739444761090,0.56050615,96245.0,96244.0,0.32192386]
[1739444761292,0.57091675,96245.0,96244.0,0.32192386]
[1739444761718,0.57391675,96245.0,96244.0,0.32192386]
[1739444764116,0.56350615,96245.0,96244.0,0.32192386]
[1739444765709,0.56150615,96245.0,96244.0,0.32192386]
[1739444765884,0.55850615,96245.0,96244.0,0.32192386]
[1739444766082,0.56150615,96245.0,96244.0,0.32192386]
[1739444767290,0.56550615,96245.0,96244.0,0.32192386]
[1739444767495,0.71550615,96245.0,96244.0,0.32192386]
[1739444767935,0.70850615,96245.0,96244.0,0.32192386]
[1739444768240,0.71450615,96245.0,96244.0,0.32192386]
[1739444768415,0.71950615,96245.0,96244.0,0.32192386]
[1739444768628,0.70850615,96245.0,96244.0,0.32192386]
[1739444768852,0.71350615,96245.0,96244.0,0.32192386]
[1739444769545,0.71950615,96245.0,96244.0,0.32192386]
[1739444770389,0.71950615,96245.0,96244.0,0.00022386]
[1739444774618,0.41950615,96245.0,96244.0,0.00022386]
[1739444774821,0.71950615,96245.0,96244.0,0.00022386]
[1739444775344,0.56365415,96245.0,96244.0,0.12512386]
[1739444775545,0.56950615,96245.0,96244.0,0.12512386]
[1739444780816,0.41365415,96245.0,96244.0,0.12512386]
[1739444781257,0.3111505,96245.0,96244.0,1.11895688]
[1739444781456,0.0111505,96245.0,96244.0,1.11895688]
[1739444781991,0.0051505,96245.0,96244.0,1.11895688]
[1739444782184,0.0001505,96245.0,96244.0,1.11895688]
[1739444782381,0.0061505,96245.0,96244.0,1.11895688]
[1739444782538,0.0081505,96245.0,96244.0,1.11895688]
[1739444782747,0.0001505,96245.0,96244.0,1.11895688]
[1739444799337,0.0001505,96245.0,96244.0,1.11995688]
[1739444799771,0.0001505,96245.0,96244.0,1.12095688]
[1739444800896,0.0001505,96245.0,96244.0,1.15332197]
[1739444801293,0.0001505,96245.0,96244.0,1.12095688]
[1739444802171,0.0001505,96245.0,96244.0,1.15331826]
[1739444802343,0.0001505,96245.0,96244.0,1.12095688]
[1739444805125,0.0001505,96245.0,96244.0,1.15331932]
[1739444805746,0.0001505,96245.0,96244.0,1.42882297]
[1739444809344,0.0001066,96267.0,96266.0,0.155818]
[1739444809542,0.00015053,96267.0,96266.0,1.12129752]
[1739444811217,0.00315053,96267.0,96266.0,1.12129752]
[1739444811423,0.00315053,96267.0,96266.0,1.14201933]
[1739444811620,0.00015053,96267.0,96266.0,1.14201933]
[1739444813525,0.00015053,96267.0,96266.0,1.05951933]
[1739444815068,0.00015053,96267.0,96266.0,1.06251933]
[1739444815496,0.00015053,96267.0,96266.0,1.06551933]
[1739444815723,0.00015053,96267.0,96266.0,1.04479752]
[1739444818692,0.00010897,96267.0,96266.0,1.04479752]
[1739444820220,0.00010897,96267.0,96266.0,1.04479752]
[1739444820421,0.00010897,96267.0,96266.0,0.84397952]
[1739444820847,0.30010897,96267.0,96266.0,0.84397952]
[1739444821473,0.45592497,96267.0,96266.0,0.84097952]